fUST/lending_fUST_20250423
["ID","MTS","AMOUNT","RATE_DAILY","PERIOD"]
[358669474,1745356246753,-500.0,0.00022191,2]
[358669475,1745356246764,-514.99881342,0.00022191,2]
[358669476,1745356246776,-500.0,0.00022191,2]
[358669477,1745356246788,-500.0,0.00022191,2]
[358669478,1745356246799,-500.0,0.00022191,2]
[358669479,1745356246809,-500.0,0.00022191,2]
[358669480,1745356246820,-500.0,0.00022191,2]
[358669481,1745356246830,-204.84173547,0.00022191,2]
[358669482,1745356246840,-500.0,0.00022191,2]
[358669483,1745356246850,-500.0,0.00022191,2]
[358669484,1745356246862,-500.0,0.00022191,2]
[358669485,1745356246873,-500.0,0.00022191,2]
[358669486,1745356246883,-500.0,0.00022191,2]
[358669487,1745356246894,-500.0,0.00022191,2]
[358669488,1745356246904,-500.0,0.00022191,2]
[358669489,1745356246914,-500.0,0.00022191,2]
[358669490,1745356246924,-500.0,0.00022191,2]
[358669491,1745356246934,-500.0,0.00022191,2]
[358669492,1745356246943,-500.0,0.00022191,2]
[358669493,1745356246957,-632.01712451,0.00022191,2]
[358669494,1745356246967,-500.0,0.00022191,2]
[358669495,1745356246976,-500.0,0.00022191,2]
[358669496,1745356246986,-500.0,0.00022191,2]
[358669497,1745356246996,-500.0,0.00022191,2]
[358669498,1745356247005,-500.0,0.00022191,2]
[358669499,1745356247015,-500.0,0.00022191,2]
[358669500,1745356247026,-500.0,0.00022191,2]
[358669501,1745356247036,-500.0,0.00022191,2]
[358669502,1745356247046,-500.0,0.00022191,2]
[358669503,1745356247056,-500.0,0.00022191,2]
[358669504,1745356247066,-500.0,0.00022191,2]
[358669505,1745356247076,-500.0,0.00022191,2]
[358669506,1745356247086,-500.0,0.00022191,2]
[358669507,1745356247096,-500.0,0.00022191,2]
[358669508,1745356247106,-500.0,0.00022191,2]
[358669509,1745356247116,-507.507474,0.00022191,2]
[358669510,1745356247125,-357.04926952,0.00022191,2]
[358669511,1745356247135,-500.0,0.00022191,2]
[358669512,1745356247145,-500.0,0.00022191,2]
[358669513,1745356247155,-500.0,0.00022191,2]
[358669514,1745356247164,-500.0,0.00022191,2]
[358669515,1745356247174,-500.0,0.00022191,2]
[358669516,1745356247184,-502.46614667,0.00022191,2]
[358669517,1745356247193,-500.0,0.00022191,2]
[358669518,1745356247203,-500.0,0.00022191,2]
[358669519,1745356247215,-500.0,0.00022191,2]
[358669520,1745356247225,-500.0,0.00022191,2]
[358669521,1745356247235,-500.0,0.00022191,2]
[358669522,1745356247244,-562.10566099,0.00022191,2]
[358669523,1745356247255,-500.0,0.00022191,2]
[358669524,1745356247264,-500.0,0.00022191,2]
[358669525,1745356247274,-500.0,0.00022191,2]
[358669526,1745356247284,-500.0,0.00022191,2]
[358669527,1745356247294,-503.44754854,0.00022191,2]
[358669528,1745356247303,-500.0,0.00022191,2]
[358669529,1745356247313,-500.0,0.00022191,2]
[358669530,1745356247322,-500.0,0.00022191,2]
[358669531,1745356247332,-500.0,0.00022191,2]
[358669532,1745356247342,-500.0,0.00022191,2]
[358669533,1745356247352,-506.08059371,0.00022191,2]
[358669534,1745356247361,-500.0,0.00022191,2]
[358669535,1745356247371,-500.0,0.00022191,2]
[358669536,1745356247381,-500.0,0.00022191,2]
[358669537,1745356247390,-500.0,0.00022191,2]
[358669538,1745356247400,-500.0,0.00022191,2]
[358669539,1745356247410,-500.0,0.00022191,2]
[358669540,1745356247420,-500.0,0.00022191,2]
[358669541,1745356247431,-500.0,0.00022191,2]
[358669542,1745356247441,-505.48083353,0.00022191,2]
[358669543,1745356247450,-508.9031738,0.00022191,2]
[358669544,1745356247463,-500.0,0.00022191,2]
[358669545,1745356247472,-500.0,0.00022191,2]
[358669546,1745356247483,-509.21186347,0.00022191,2]
[358669547,1745356247493,-246.76921489,0.00022191,2]
[358669548,1745356247505,-500.0,0.00022191,2]
[358669549,1745356247515,-500.0,0.00022191,2]
[358669550,1745356247525,-500.0,0.00022191,2]
[358669551,1745356247535,-500.0,0.00022191,2]
[358669552,1745356247545,-594.00838893,0.00022191,2]
[358669553,1745356247555,-500.0,0.00022191,2]
[358669554,1745356247565,-500.0,0.00022191,2]
[358669555,1745356247574,-500.0,0.00022191,2]
[358669556,1745356247584,-500.0,0.00022191,2]
[358669557,1745356247594,-500.0,0.00022191,2]
[358669558,1745356247604,-500.0,0.00022191,2]
[358669559,1745356247618,-500.0,0.00022191,2]
[358669560,1745356247628,-500.0,0.00022191,2]
[358669561,1745356247638,-500.0,0.00022191,2]
[358669562,1745356247649,-500.0,0.00022191,2]
[358669563,1745356247659,-500.0,0.00022191,2]
[358669564,1745356247670,-545.7490967,0.00022191,2]
[358669565,1745356247682,-502.64389879,0.00022191,2]
[358669566,1745356247692,-500.0,0.00022191,2]
[358669567,1745356247702,-504.55833297,0.00022191,2]
[358669568,1745356247713,-500.0,0.00022191,2]
[358669569,1745356247723,-643.03,0.00022191,2]
[358669570,1745356247733,-500.0,0.00022191,2]
[358669571,1745356247743,-500.0,0.00022191,2]
[358669572,1745356247753,-500.0,0.00022191,2]
[358669573,1745356247763,-500.0,0.00022191,2]
[358669574,1745356247773,-500.0,0.00022191,2]
[358669575,1745356247784,-500.0,0.00022191,2]
[358669576,1745356247795,-608.98,0.00022191,2]
[358669577,1745356247806,-500.0,0.00022191,2]
[358669578,1745356247816,-500.0,0.00022191,2]
[358669579,1745356247826,-500.0,0.00022191,2]
[358669580,1745356247836,-500.0,0.00022191,2]
[358669581,1745356247846,-500.0,0.00022191,2]
[358669582,1745356247858,-500.0,0.00022191,2]
[358669583,1745356247868,-505.43583714,0.00022191,2]
[358669584,1745356247878,-500.0,0.00022191,2]
[358669585,1745356247888,-500.0,0.00022191,2]
[358669586,1745356248050,-500.0,0.00022191,2]
[358669587,1745356248060,-500.0,0.00022191,2]
[358669588,1745356248070,-500.0,0.00022191,2]
[358669589,1745356248080,-639.67,0.00022191,2]
[358669590,1745356248090,-500.0,0.00022191,2]
[358669591,1745356248100,-500.0,0.00022191,2]
[358669592,1745356248109,-500.0,0.00022191,2]
[358669593,1745356248119,-500.0,0.00022191,2]
[358669594,1745356248129,-500.0,0.00022191,2]
[358669595,1745356248139,-500.0,0.00022191,2]
[358669596,1745356248149,-500.0,0.00022191,2]
[358669597,1745356248159,-500.0,0.00022191,2]
[358669598,1745356248168,-551.41109219,0.00022191,2]
[358669599,1745356248178,-500.0,0.00022191,2]
[358669600,1745356248188,-500.0,0.00022191,2]
[358669601,1745356248198,-500.0,0.00022191,2]
[358669602,1745356248210,-413.26142151,0.00022191,2]
[358669603,1745356248219,-500.0,0.00022191,2]
[358669604,1745356248230,-500.0,0.00022191,2]
[358669605,1745356248239,-151.0,0.00022191,7]
[358669606,1745356248249,-500.0,0.00022191,2]
[358669607,1745356248259,-500.0,0.00022191,2]
[358669608,1745356248269,-500.0,0.00022191,2]
[358669609,1745356248279,-500.0,0.00022191,2]
[358669610,1745356248289,-623.45630111,0.00022191,2]
[358669611,1745356248298,-500.0,0.00022191,2]
[358669612,1745356248308,-500.0,0.00022191,2]
[358669613,1745356248317,-500.0,0.00022191,2]
[358669614,1745356248327,-3748.32,0.00022191,2]
[358669615,1745356248338,-500.0,0.00022191,2]
[358669616,1745356248348,-500.0,0.00022191,2]
[358669617,1745356248358,-500.0,0.00022191,2]
[358669618,1745356248368,-500.0,0.00022191,2]
[358669619,1745356248378,-500.0,0.00022191,2]
[358669620,1745356248388,-500.0,0.00022191,2]
[358669621,1745356248398,-500.0,0.00022191,2]
[358669622,1745356248408,-500.0,0.00022191,2]
[358669623,1745356248417,-500.0,0.00022191,2]
[358669624,1745356248427,-500.0,0.00022191,2]
[358669625,1745356248437,-500.0,0.00022191,2]
[358669626,1745356248447,-500.0,0.00022191,2]
[358669627,1745356248456,-500.0,0.00022191,2]
[358669628,1745356248466,-500.0,0.00022191,2]
[358669629,1745356248475,-500.0,0.00022191,2]
[358669630,1745356248485,-539.85,0.00022191,2]
[358669631,1745356248495,-500.0,0.00022191,2]
[358669632,1745356248505,-744.97,0.00022191,2]
[358669633,1745356248514,-500.0,0.00022191,2]
[358669634,1745356248524,-541.77679146,0.00022191,2]
[358669635,1745356248534,-500.0,0.00022191,2]
[358669636,1745356248544,-500.0,0.00022191,2]
[358669637,1745356248554,-500.0,0.00022191,2]
[358669638,1745356248564,-500.0,0.00022191,2]
[358669639,1745356248574,-500.0,0.00022191,2]
[358669640,1745356248584,-2434.87,0.00022191,2]
[358669641,1745356248594,-566.36,0.00022191,2]
[358669642,1745356248604,-556.03,0.00022191,2]
[358669643,1745356248614,-500.0,0.00022191,2]
[358669644,1745356248624,-500.0,0.00022191,2]
[358669645,1745356248634,-500.0,0.00022191,2]
[358669646,1745356248644,-500.0,0.00022191,2]
[358669647,1745356248654,-612.46796597,0.00022191,2]
[358669648,1745356248665,-500.0,0.00022191,2]
[358669649,1745356248675,-500.0,0.00022191,2]
[358669650,1745356248685,-500.0,0.00022191,2]
[358669651,1745356248695,-556.94,0.00022191,2]
[358669652,1745356248706,-500.0,0.00022191,2]
[358669653,1745356248716,-500.0,0.00022191,2]
[358669654,1745356248726,-500.0,0.00022191,2]
[358669655,1745356248736,-500.0,0.00022191,2]
[358669656,1745356248746,-500.0,0.00022191,2]
[358669657,1745356248756,-1295.14,0.00022191,2]
[358669658,1745356248766,-500.0,0.00022191,2]
[358669659,1745356248778,-500.0,0.00022191,2]
[358669660,1745356248790,-831.65,0.00022191,2]
[358669661,1745356248801,-500.0,0.00022191,2]
[358669662,1745356248811,-500.0,0.00022191,2]
[358669663,1745356248822,-500.0,0.00022191,2]
[358669664,1745356248832,-500.0,0.00022191,2]
[358669665,1745356248843,-500.0,0.00022191,2]
[358669666,1745356248853,-500.0,0.00022191,2]
[358669667,1745356248863,-500.0,0.00022191,2]
[358669668,1745356248874,-500.0,0.00022191,2]
[358669669,1745356248885,-1738.81,0.00022191,2]
[358669670,1745356248895,-500.0,0.00022191,2]
[358669671,1745356248905,-500.0,0.00022465,2]
[358669672,1745356248915,-500.0,0.00022465,2]
[358669673,1745356248925,-500.0,0.00022465,2]
[358669674,1745356248935,-500.0,0.00022465,2]
[358669675,1745356248944,-500.0,0.00022465,2]
[358669676,1745356248954,-500.0,0.00022465,2]
[358669677,1745356248965,-500.0,0.00022465,2]
[358669678,1745356248974,-500.0,0.00022465,2]
[358669679,1745356248984,-500.0,0.00022465,2]
[358669680,1745356248994,-500.0,0.00022465,2]
[358669681,1745356249004,-575.50236083,0.00022465,2]
[358669682,1745356249014,-500.0,0.00022465,2]
[358669683,1745356249023,-501.05278398,0.00022465,2]
[358669684,1745356249034,-500.0,0.00022465,2]
[358669685,1745356249043,-500.0,0.00022465,2]
[358669686,1745356249054,-308.32168639,0.00022465,2]
[358669687,1745356249063,-500.0,0.00022465,2]
[358669688,1745356249073,-500.0,0.00022465,2]
[358669689,1745356249083,-500.0,0.00022465,2]
[358669690,1745356249093,-500.0,0.00022465,2]
[358669691,1745356249102,-500.0,0.00022465,2]
[358669692,1745356249112,-500.0,0.00022465,2]
[358669693,1745356249122,-537.03,0.00022465,2]
[358669694,1745356249132,-500.0,0.00022465,2]
[358669695,1745356249142,-500.0,0.00022465,2]
[358669696,1745356249151,-500.0,0.00022465,2]
[358669697,1745356249161,-500.0,0.00022465,2]
[358669698,1745356249170,-500.0,0.00022465,2]
[358669699,1745356249180,-393.53474684,0.00022465,2]
[358669700,1745356249190,-500.0,0.00022465,2]
[358669701,1745356249199,-500.0,0.00022465,2]
[358669702,1745356249209,-500.0,0.00022465,2]
[358669703,1745356249219,-500.0,0.00022465,2]
[358669704,1745356249229,-500.0,0.00022465,2]
[358669705,1745356249239,-262.33167693,0.00022465,2]
[358669706,1745356249248,-500.0,0.00022465,2]
[358669707,1745356249258,-245.59222798,0.00022465,2]
[358669708,1745356249267,-500.0,0.00022465,2]
[358669709,1745356249277,-453.39745666,0.00022465,2]
[358669710,1745356249287,-500.0,0.00022465,2]
[358669711,1745356249297,-500.0,0.00022465,2]
[358669712,1745356249307,-500.0,0.00022465,2]
[358669713,1745356249316,-500.0,0.00022465,2]
[358669714,1745356249326,-500.0,0.00022465,2]
[358669715,1745356249336,-500.0,0.00022465,2]
[358669716,1745356249346,-500.0,0.00022465,2]
[358669717,1745356249355,-500.0,0.00022465,2]
[358669718,1745356249365,-500.0,0.00022465,2]
[358669719,1745356249374,-500.0,0.00022465,2]
[358669720,1745356249384,-500.0,0.00022465,2]
[358669721,1745356249394,-500.0,0.00022465,2]
[358669722,1745356249404,-500.0,0.00022465,2]
[358669723,1745356249414,-500.0,0.00022465,2]
[358669724,1745356249424,-500.0,0.00022465,2]
[358669725,1745356249434,-500.0,0.00022465,2]
[358669726,1745356249443,-500.0,0.00022465,2]
[358669727,1745356249453,-500.0,0.00022465,2]
[358669728,1745356249463,-500.0,0.00022465,2]
[358669729,1745356249473,-500.0,0.00022465,2]
[358669730,1745356249483,-500.0,0.00022465,2]
[358669731,1745356249493,-500.0,0.00022465,2]
[358669732,1745356249502,-235.785191,0.00022465,7]
[358669733,1745356249512,-235.785191,0.00022465,7]
[358669734,1745356249522,-500.0,0.00022465,2]
[358669735,1745356249531,-639.67,0.00022465,2]
[358669736,1745356249541,-350.88365585,0.00022465,2]
[358669737,1745356249551,-500.0,0.00022465,2]
[358669738,1745356249560,-389.54047517,0.00022465,2]
[358669739,1745356249570,-500.0,0.00022465,2]
[358669740,1745356249580,-500.0,0.00022465,2]
[358669741,1745356249590,-534.14,0.00022465,2]
[358669742,1745356249599,-151.0,0.00022465,7]
[358669743,1745356249613,-3748.32,0.00022465,2]
[358669744,1745356249623,-500.0,0.00022465,2]
[358669745,1745356249633,-500.0,0.00022465,2]
[358669746,1745356249643,-151.0,0.00022465,7]
[358669747,1745356249654,-500.0,0.00022465,2]
[358669748,1745356249664,-151.0,0.00022465,7]
[358669749,1745356249674,-153.386195,0.00022465,7]
[358669750,1745356249684,-500.0,0.00022465,2]
[358669751,1745356249694,-64.91056638,0.00022465,2]
[358669752,1745356249843,-680.05943362,0.00022465,2]
[358669753,1745356249854,-500.0,0.00022465,2]
[358669754,1745356249864,-500.0,0.00022465,2]
[358669755,1745356249874,-330.16352921,0.00022465,2]
[358669756,1745356249884,-787.35936977,0.00022465,2]
[358669757,1745356249896,-1547.57583334,0.00022465,2]
[358669758,1745356249909,-99.93479689,0.00022465,2]
[358669759,1745356249919,-566.36,0.00022465,2]
[358669760,1745356249929,-151.0,0.00022465,7]
[358669761,1745356249939,-500.0,0.00022465,2]
[358669762,1745356249949,-500.0,0.00022465,2]
[358669763,1745356249959,-182.55560108,0.00022465,2]
[358669764,1745356249969,-500.0,0.00022465,2]
[358669765,1745356249980,-500.0,0.00022465,2]
[358669766,1745356249989,-1295.14,0.00022465,2]
[358669767,1745356249999,-500.0,0.00022465,2]
[358669768,1745356250009,-500.0,0.00022465,2]
[358669769,1745356250019,-831.65,0.00022465,2]
[358669770,1745356250073,-500.0,0.00022465,2]
[358669771,1745356250082,-172.663445,0.00022465,7]
[358669772,1745356250093,-172.663445,0.00022465,7]
[358669773,1745356250102,-500.0,0.00022465,2]
[358669774,1745356250112,-5.81245557,0.00022465,2]
[358669775,1745356250687,-496.40884941,0.00022465,2]
[358669776,1745356250698,-500.0,0.00022465,2]
[358669777,1745356250707,-500.0,0.00022465,2]
[358669778,1745356250717,-1738.81,0.00022465,2]
[358669779,1745356250727,-500.0,0.00022492,2]
[358669780,1745356250736,-297.71335047,0.00022492,2]
[358669781,1745356250746,-500.0,0.00022739,2]
[358669782,1745356250756,-532.44371056,0.00022739,2]
[358669783,1745356250765,-500.0,0.00022739,2]
[358669784,1745356250777,-500.0,0.00022739,2]
[358669785,1745356250788,-472.58726242,0.00022739,2]
[358669786,1745356250798,-500.0,0.00022739,2]
[358669787,1745356250808,-500.0,0.00022739,2]
[358669788,1745356250818,-500.0,0.00022739,2]
[358669789,1745356250829,-500.0,0.00022739,2]
[358669790,1745356250839,-180.72913579,0.00022739,2]
[358669791,1745356250849,-500.0,0.00022739,2]
[358669792,1745356250859,-500.0,0.00022739,2]
[358669793,1745356250870,-500.0,0.00022739,2]
[358669794,1745356250880,-500.0,0.00022739,2]
[358669795,1745356250890,-500.0,0.00022739,2]
[358669796,1745356250900,-500.0,0.00022739,2]
[358669797,1745356250910,-639.67,0.00022739,2]
[358669798,1745356250920,-500.0,0.00022739,2]
[358669799,1745356250930,-500.0,0.00022739,2]
[358669800,1745356250940,-3748.32,0.00022739,2]
[358669801,1745356250950,-500.0,0.00022739,2]
[358669802,1745356250960,-500.0,0.00022739,2]
[358669803,1745356250971,-500.0,0.00022739,2]
[358669804,1745356250981,-414.48227324,0.00022739,2]
[358669805,1745356250991,-744.97,0.00022739,2]
[358669806,1745356251002,-500.0,0.00022739,2]
[358669807,1745356251013,-500.0,0.00022739,2]
[358669808,1745356251022,-2434.87,0.00022739,2]
[358669809,1745356251033,-566.36,0.00022739,2]
[358669810,1745356251043,-500.0,0.00022739,2]
[358669811,1745356251053,-500.0,0.00022739,2]
[358669812,1745356251062,-500.0,0.00022739,2]
[358669813,1745356251072,-500.0,0.00022739,2]
[358669814,1745356251082,-1295.14,0.00022739,2]
[358669815,1745356251092,-500.0,0.00022739,2]
[358669816,1745356251102,-500.0,0.00022739,2]
[358669817,1745356251112,-831.65,0.00022739,2]
[358669818,1745356251121,-500.0,0.00022739,2]
[358669819,1745356251131,-1738.81,0.00022739,2]
[358669820,1745356251141,-160.0,0.00022785,2]
[358669821,1745356251151,-160.0,0.00022785,2]
[358669822,1745356251161,-160.0,0.00022785,2]
[358669823,1745356251171,-160.0,0.00022785,2]
[358669824,1745356251180,-729.16666667,0.00022785,2]
[358669825,1745356251190,-160.0,0.00022785,2]
[358669826,1745356251200,-12570.97479393,0.00022785,2]
[358669827,1745356251210,-160.0,0.00022785,2]
[358669828,1745356251220,-420.73667954,0.00022785,2]
[358669829,1745356251230,-420.0,0.00022841,2]
[358669830,1745356251239,-420.0,0.00022841,2]
[358669831,1745356251249,-467.97718408,0.00022909,2]
[358669832,1745356251259,-1359.39125738,0.00022923,2]
[358669833,1745356251269,-500.0,0.00023013,2]
[358669834,1745356251278,-500.0,0.00023013,2]
[358669835,1745356251288,-500.0,0.00023013,2]
[358669836,1745356251298,-500.0,0.00023013,2]
[358669837,1745356251308,-500.0,0.00023013,2]
[358669838,1745356251318,-500.0,0.00023013,2]
[358669839,1745356251328,-500.0,0.00023013,2]
[358669840,1745356251337,-500.0,0.00023013,2]
[358669841,1745356251347,-500.0,0.00023013,2]
[358669842,1745356251356,-286.82584436,0.00023013,2]
[358669843,1745356251366,-639.67,0.00023013,2]
[358669844,1745356251375,-379.46445908,0.00023013,2]
[358669845,1745356251386,-500.0,0.00023013,2]
[358669846,1745356251396,-3748.32,0.00023013,2]
[358669847,1745356251406,-500.0,0.00023013,2]
[358669848,1745356251416,-500.0,0.00023013,2]
[358669849,1745356251426,-499.99000004,0.00023013,2]
[358669850,1745356251436,-744.97,0.00023013,2]
[358669851,1745356251446,-500.0,0.00023013,2]
[358669852,1745356251456,-245.9322173,0.00023013,2]
[358669853,1745356251467,-2434.87,0.00023013,2]
[358669854,1745356251477,-566.36,0.00023013,2]
[358669855,1745356251487,-500.0,0.00023013,2]
[358669856,1745356251498,-502.04421327,0.00023013,2]
[358669857,1745356251509,-500.0,0.00023013,2]
[358669858,1745356251518,-500.0,0.00023013,2]
[358669859,1745356251530,-1295.14,0.00023013,2]
[358669860,1745356251542,-500.0,0.00023013,2]
[358669861,1745356251554,-500.0,0.00023013,2]
[358669862,1745356251565,-831.65,0.00023013,2]
[358669863,1745356251576,-500.0,0.00023013,2]
[358669864,1745356251587,-1738.81,0.00023013,2]
[358669865,1745356251599,-500.0,0.00023061,2]
[358669866,1745356251610,-500.67474896,0.00023061,2]
[358669867,1745356251619,-335.53007672,0.00023061,2]
[358669868,1745356251629,-500.0,0.00023287,2]
[358669869,1745356251639,-500.0,0.00023287,2]
[358669870,1745356251648,-530.49954683,0.00023287,2]
[358669871,1745356251658,-500.0,0.00023287,2]
[358669872,1745356251668,-500.0,0.00023287,2]
[358669873,1745356251679,-611.88026424,0.00023287,2]
[358669874,1745356251688,-500.0,0.00023287,2]
[358669875,1745356251698,-500.0,0.00023287,2]
[358669876,1745356251709,-639.67,0.00023287,2]
[358669877,1745356251719,-500.0,0.00023287,2]
[358669878,1745356251729,-26.45934796,0.00023287,2]
[358669879,1745356251742,-2367.88707537,0.00023287,2]
[358669880,1745356251754,-1353.97357667,0.00023287,2]
[358669881,1745356251764,-184.00558691,0.00023287,2]
[358669882,1745356251775,-500.0,0.00023287,2]
[358669883,1745356251785,-744.97,0.00023287,2]
[358669884,1745356251795,-500.0,0.00023287,2]
[358669885,1745356251806,-2434.87,0.00023287,2]
[358669886,1745356251815,-566.36,0.00023287,2]
[358669887,1745356251826,-500.0,0.00023287,2]
[358669888,1745356251836,-500.0,0.00023287,2]
[358669889,1745356251846,-198.52392113,0.00023287,2]
[358669890,1745356251857,-1295.14,0.00023287,2]
[358669891,1745356251868,-500.0,0.00023287,2]
[358669892,1745356251877,-831.65,0.00023287,2]
[358669893,1745356251887,-500.0,0.00023287,2]
[358669894,1745356251897,-1738.81,0.00023287,2]
[358669895,1745356251907,-2660.8,0.00023561,2]
[358669896,1745356251917,-2660.8,0.00023561,2]
[358669897,1745356251928,-2660.8,0.00023561,2]
[358669898,1745356251939,-2660.8,0.00023561,2]
[358669899,1745356251949,-2660.8,0.00023561,2]
[358669900,1745356251959,-2660.8,0.00023561,2]
[358669901,1745356251968,-2660.8,0.00023561,2]
[358669902,1745356251979,-2660.8,0.00023561,2]
[358669903,1745356251989,-500.0,0.00023561,2]
[358669904,1745356252001,-276.28955306,0.00023561,2]
[358669905,1745356252013,-472.175742,0.00023561,7]
[358669906,1745356252024,-472.175742,0.00023561,7]
[358669907,1745356252034,-500.0,0.00023561,2]
[358669908,1745356252044,-500.0,0.00023561,2]
[358669909,1745356252055,-918.839639,0.00023561,2]
[358669910,1745356252065,-918.839639,0.00023561,2]
[358669911,1745356252075,-500.0,0.00023561,2]
[358669912,1745356252085,-500.0,0.00023561,2]
[358669913,1745356252097,-639.67,0.00023561,2]
[358669914,1745356252108,-500.0,0.00023561,2]
[358669915,1745356252119,-3748.32,0.00023561,2]
[358669916,1745356252130,-500.0,0.00023561,2]
[358669917,1745356252142,-744.97,0.00023561,2]
[358669918,1745356252154,-500.0,0.00023561,2]
[358669919,1745356252164,-2434.87,0.00023561,2]
[358669920,1745356252176,-566.36,0.00023561,2]
[358669921,1745356252187,-500.0,0.00023561,2]
[358669922,1745356252198,-500.0,0.00023561,2]
[358669923,1745356252208,-1295.14,0.00023561,2]
[358669924,1745356252217,-500.0,0.00023561,2]
[358669925,1745356252227,-330.6805556,0.00023561,2]
[358669926,1745356252293,-500.9694444,0.00023561,2]
[358669927,1745356252303,-605.08,0.00023561,2]
[358669928,1745356252313,-1738.81,0.00023561,2]
[358669929,1745356252323,-600.0,0.00023616,2]
[358669930,1745356252334,-250.0,0.00023835,5]
[358669931,1745356252344,-500.0,0.00023835,2]
[358669932,1745356252354,-151.201501,0.00023835,7]
[358669933,1745356252364,-151.0,0.00023835,7]
[358669934,1745356252374,-500.0,0.00023835,2]
[358669935,1745356252384,-211.40949782,0.00023835,2]
[358669936,1745356252394,-500.0,0.00023835,2]
[358669937,1745356252403,-500.0,0.00023835,2]
[358669938,1745356252414,-639.67,0.00023835,2]
[358669939,1745356252424,-500.0,0.00023835,2]
[358669940,1745356252434,-3748.32,0.00023835,2]
[358669941,1745356252444,-500.0,0.00023835,2]
[358669942,1745356252454,-744.97,0.00023835,2]
[358669943,1745356252464,-500.0,0.00023835,2]
[358669944,1745356252474,-2434.87,0.00023835,2]
[358669945,1745356252484,-566.36,0.00023835,2]
[358669946,1745356252494,-500.0,0.00023835,2]
[358669947,1745356252505,-500.0,0.00023835,2]
[358669948,1745356252515,-1295.14,0.00023835,2]
[358669949,1745356252525,-500.0,0.00023835,2]
[358669950,1745356252535,-831.65,0.00023835,2]
[358669951,1745356252545,-1738.81,0.00023835,2]
[358669952,1745356252555,-988.72145175,0.000239,2]
[358669953,1745356252565,-945.46004793,0.00023918,2]
[358669954,1745356252574,-3000.0,0.000241,2]
[358669955,1745356252584,-500.0,0.00024109,2]
[358669956,1745356252594,-500.0,0.00024109,2]
[358669957,1745356252604,-500.0,0.00024109,2]
[358669958,1745356252614,-500.0,0.00024109,2]
[358669959,1745356252623,-639.67,0.00024109,2]
[358669960,1745356252633,-500.0,0.00024109,2]
[358669961,1745356252643,-3748.32,0.00024109,2]
[358669962,1745356252653,-500.0,0.00024109,2]
[358669963,1745356252663,-744.97,0.00024109,2]
[358669964,1745356252672,-493.06,0.00024109,2]
[358669965,1745356252682,-478.45599189,0.00024109,2]
[358669966,1745356252880,-1956.41400811,0.00024109,2]
[358669967,1745356252891,-566.36,0.00024109,2]
[358669968,1745356252900,-500.0,0.00024109,2]
[358669969,1745356252910,-500.0,0.00024109,2]
[358669970,1745356252919,-1295.14,0.00024109,2]
[358669971,1745356252929,-500.0,0.00024109,2]
[358669972,1745356252939,-831.65,0.00024109,2]
[358669973,1745356252949,-520.79,0.00024109,2]